bitfinex/quotes_BTCUSD_20250102
["timestamp","ask_amount","ask_price","bid_price","bid_amount"]
[1735843287657,0.0050458,96953.0,96952.0,2.48050337]
[1735843287971,0.0070458,96953.0,96952.0,2.48150337]
[1735843295451,0.0070458,96953.0,96952.0,2.38150337]
[1735843296505,0.0070458,96953.0,96952.0,2.48150337]
[1735843298830,0.0070458,96953.0,96952.0,2.38150337]
[1735843299893,0.0070458,96953.0,96952.0,2.38167437]
[1735843302861,0.0070458,96953.0,96952.0,2.48167437]
[1735843309418,0.0070458,96953.0,96952.0,2.38167437]
[1735843309820,0.0070458,96953.0,96952.0,2.48167437]
[1735843317102,8e-07,96953.0,96952.0,2.48167437]
[1735843317720,0.0763,96976.0,96956.0,0.65250905]
[1735843318050,0.0763,96976.0,96956.0,0.77949537]
[1735843318438,0.0763,96976.0,96956.0,2.27949537]
[1735843318843,0.0050854,96957.0,96956.0,2.28049537]
[1735843319386,0.0070854,96957.0,96956.0,2.28149537]
[1735843320305,0.0070854,96957.0,96956.0,2.15849537]
[1735843320505,0.0070854,96957.0,96956.0,2.35849537]
[1735843320707,0.0070854,96957.0,96956.0,2.38149537]
[1735843321116,0.0070854,96957.0,96956.0,2.39174219]
[1735843325381,0.0070854,96957.0,96956.0,2.29174219]
[1735843325587,0.0070854,96957.0,96956.0,2.39174219]
[1735843326849,0.0070854,96957.0,96956.0,2.73142264]
[1735843327613,4e-07,96957.0,96956.0,2.73142264]
[1735843328438,0.0763,96976.0,96975.0,0.50246805]
[1735843328628,0.07644676,96976.0,96975.0,0.60645437]
[1735843329084,0.07644676,96976.0,96975.0,2.10645437]
[1735843329280,0.00014676,96976.0,96975.0,2.27945437]
[1735843329896,0.00014676,96976.0,96975.0,2.28968962]
[1735843330451,0.00014676,96976.0,96975.0,2.81468568]
[1735843330866,0.00014676,96976.0,96975.0,2.91368568]
[1735843331339,0.00014676,96976.0,96975.0,2.91568568]
[1735843331789,0.00014676,96976.0,96975.0,2.73137007]
[1735843332421,0.00014676,96976.0,96975.0,2.60837007]
[1735843332634,0.00014676,96976.0,96975.0,2.45837007]
[1735843333236,0.00014676,96976.0,96975.0,2.14168962]
[1735843334291,0.00023226,96976.0,96975.0,2.14168962]
[1735843335684,0.00023226,96976.0,96975.0,2.11868962]
[1735843336563,0.12293226,96976.0,96975.0,1.502]
[1735843336821,0.12293226,96976.0,96975.0,0.002]
[1735843337298,0.13074125,96976.0,96975.0,1.502]
[1735843337528,0.13074125,96976.0,96975.0,1.5]
[1735843337732,0.13074125,96976.0,96975.0,1.501]
[1735843337934,0.12293226,96976.0,96975.0,1.502]
[1735843338074,0.13074044,96976.0,96975.0,1.502]
[1735843339104,0.13074044,96976.0,96975.0,1.501]
[1735843339274,0.13074044,96976.0,96975.0,1.5]
[1735843339484,0.13174044,96976.0,96975.0,1.517]
[1735843340126,0.12293226,96976.0,96975.0,1.5]
[1735843340349,0.12493226,96976.0,96975.0,1.516]
[1735843341320,0.12493226,96976.0,96975.0,1.71621637]
[1735843341727,0.12493226,96976.0,96975.0,1.61998632]
[1735843342203,0.12393226,96976.0,96975.0,1.61298632]
[1735843342499,0.12393226,96976.0,96975.0,1.61898632]
[1735843342849,0.12293226,96976.0,96975.0,1.60398632]
[1735843343056,0.12293226,96976.0,96975.0,1.61298632]
[1735843343311,0.12393226,96976.0,96975.0,1.517]
[1735843343512,0.12393226,96976.0,96975.0,1.508]
[1735843343727,0.12393226,96976.0,96975.0,1.517]
[1735843348823,0.12393226,96976.0,96975.0,1.71721637]
[1735843349039,0.00123226,96976.0,96975.0,1.71721637]
[1735843350031,0.00023226,96976.0,96975.0,1.71029155]
[1735843350241,0.00023226,96976.0,96975.0,1.71129155]
[1735843350619,0.00023226,96976.0,96975.0,1.71029155]
[1735843350849,0.00023226,96976.0,96975.0,1.71129155]
[1735843352263,0.00023226,96976.0,96975.0,1.71229155]
[1735843362507,0.00023226,96976.0,96975.0,1.71129155]
[1735843362952,0.00023226,96976.0,96975.0,1.71229155]
[1735843363540,0.00023226,96976.0,96975.0,1.71129155]
[1735843363757,0.00023226,96976.0,96975.0,1.71229155]
[1735843368256,0.12913226,96976.0,96975.0,1.60598632]
[1735843368464,0.12913226,96976.0,96975.0,1.70221637]
[1735843369412,0.12913226,96976.0,96975.0,1.502]
[1735843369609,0.12913226,96976.0,96975.0,0.002]
[1735843369975,0.12913226,96976.0,96975.0,1.502]
[1735843370818,0.12913226,96976.0,96975.0,1.501]
[1735843371237,0.12913226,96976.0,96975.0,1.506]
[1735843371455,0.12913226,96976.0,96975.0,1.515]
[1735843372692,0.12913226,96976.0,96975.0,1.61898632]
[1735843372957,0.05003226,96976.0,96975.0,1.71521637]
[1735843373157,0.00023226,96976.0,96975.0,1.71521637]
[1735843373746,0.00023226,96976.0,96975.0,1.70021637]
[1735843374152,0.00223226,96976.0,96975.0,1.71721637]
[1735843378592,0.00223226,96976.0,96975.0,0.21721637]
[1735843379888,0.00223226,96976.0,96975.0,1.71721637]
[1735843381399,0.00223226,96976.0,96975.0,1.86721637]
[1735843384400,0.00223226,96976.0,96975.0,1.77098632]
[1735843384580,0.00223226,96976.0,96975.0,1.86721637]
[1735843384758,0.00223226,96976.0,96975.0,1.96721637]
[1735843387303,0.00223226,96976.0,96975.0,1.99021637]
[1735843387899,1e-08,96976.0,96975.0,2.31511637]
[1735843388747,1e-08,96976.0,96975.0,2.30711637]
[1735843388948,8.54e-05,96985.0,96984.0,0.456219]
[1735843389153,8.54e-05,96985.0,96984.0,0.58320532]
[1735843389308,8.54e-05,96985.0,96984.0,0.67943537]
[1735843389518,8.54e-05,96985.0,96984.0,2.27943537]
[1735843389723,0.0002,97009.0,97007.0,0.50240005]
[1735843389925,0.0005746,97008.0,97007.0,0.81198637]
[1735843391655,0.0005746,97008.0,97007.0,0.71198637]
[1735843392100,0.0005746,97008.0,97007.0,0.41538637]
[1735843392338,0.0005746,97008.0,97007.0,0.51538637]
[1735843392514,0.0005746,97008.0,97007.0,0.52138637]
[1735843392693,0.0005746,97008.0,97007.0,0.53185878]
[1735843393086,0.0005746,97008.0,97007.0,2.03185878]
[1735843394679,0.0005746,97008.0,97007.0,2.13185878]
[1735843394912,0.0005746,97008.0,97007.0,2.30485878]
[1735843395446,0.0005746,97008.0,97007.0,0.37698632]
[1735843395950,0.0005746,97008.0,97007.0,0.38739589]
[1735843396132,0.0005746,97008.0,97007.0,0.38939589]
[1735843396511,0.0005746,97008.0,97007.0,1.88939589]
[1735843396714,0.0005746,97008.0,97007.0,2.09356589]
[1735843397270,0.0005746,97008.0,97007.0,2.09456589]
[1735843398108,0.0005746,97008.0,97007.0,2.19456589]
[1735843398514,0.0005746,97008.0,97007.0,2.19356589]
[1735843398713,0.0035746,97008.0,97007.0,2.19556589]
[1735843398946,0.0035746,97008.0,97007.0,2.19456589]
[1735843399129,0.0035746,97008.0,97007.0,2.19356589]
[1735843399346,0.0125746,97008.0,97007.0,2.19456589]
[1735843399551,0.0145746,97008.0,97007.0,2.19456589]
[1735843400002,0.0235746,97008.0,97007.0,2.19556589]
[1735843402494,0.0235746,97008.0,97007.0,2.29556589]
[1735843403558,0.0235746,97008.0,97007.0,2.19556589]
[1735843403714,0.0235746,97008.0,97007.0,2.09556589]
[1735843404499,0.0235746,97008.0,97007.0,2.19556589]
[1735843404905,0.0235746,97008.0,97007.0,2.09573689]
[1735843405479,0.0235746,97008.0,97007.0,2.19573689]
[1735843413565,6e-07,97009.0,97008.0,0.1]
[1735843413767,2.4e-07,97009.0,97008.0,0.68218632]
[1735843414291,2.4e-07,97009.0,97008.0,2.18218632]
[1735843414691,0.0473,97029.0,97026.0,0.40613]
[1735843414893,8.55e-05,97037.0,97026.0,0.78311632]
[1735843415538,8.55e-05,97037.0,97026.0,2.28311632]
[1735843415967,8.55e-05,97037.0,97026.0,2.28411632]
[1735843416176,0.0030855,97027.0,97026.0,2.28511632]
[1735843416578,5e-07,97027.0,97026.0,2.28511632]
[1735843416993,5e-07,97027.0,97026.0,2.28411632]
[1735843417188,5e-07,97027.0,97026.0,2.38411632]
[1735843417359,8.55e-05,97037.0,97036.0,0.556109]
[1735843417571,8.55e-05,97037.0,97036.0,0.88829532]
[1735843417749,8.55e-05,97037.0,97036.0,0.98829532]
[1735843417929,5e-07,97037.0,97036.0,2.48829532]
[1735843418756,5e-07,97037.0,97036.0,2.49029532]
[1735843419635,5e-07,97037.0,97036.0,2.48929532]
[1735843420195,5e-07,97037.0,97036.0,2.48829532]
[1735843420394,5e-07,97037.0,97036.0,2.50243348]
[1735843421213,5e-07,97037.0,97036.0,2.50343348]
[1735843421419,5e-07,97037.0,97036.0,2.50243348]
[1735843421540,5e-07,97037.0,97036.0,2.50343348]
[1735843421977,4.6e-05,97040.0,97039.0,0.1]
[1735843422138,0.00019262,97040.0,97039.0,0.22698632]
[1735843423357,0.00019262,97040.0,97039.0,0.37798632]
[1735843424099,0.00019262,97040.0,97039.0,0.37898632]
[1735843425165,4e-07,97042.0,97041.0,0.1]
[1735843425365,4e-07,97042.0,97041.0,0.55928632]
[1735843425593,4e-07,97042.0,97041.0,2.05928632]
[1735843427187,4e-07,97049.0,97048.0,0.656083]
[1735843427535,9e-07,97055.0,97054.0,0.65737]
[1735843427690,9e-07,97057.0,97056.0,0.35]
[1735843427885,0.0816,97081.0,97072.0,0.679032]
[1735843428255,0.00018125,97073.0,97072.0,0.78301832]
[1735843428604,0.00018125,97073.0,97072.0,2.28301832]
[1735843428970,0.00018125,97073.0,97072.0,2.28401832]
[1735843429834,0.00018125,97073.0,97072.0,2.30020966]
[1735843430295,0.00018125,97073.0,97072.0,1.92720966]
[1735843430472,0.12448125,97073.0,97072.0,0.22322334]
[1735843430848,0.12448125,97073.0,97072.0,0.22222334]
[1735843431063,0.12448125,97073.0,97072.0,0.22422334]
[1735843431450,0.12448125,97073.0,97072.0,0.32620966]
[1735843431656,0.12448125,97073.0,97072.0,0.33520966]
[1735843432018,0.12448125,97073.0,97072.0,0.49120966]
[1735843432225,0.00018125,97073.0,97072.0,0.49120966]
[1735843432466,0.00018125,97073.0,97072.0,0.47620966]
[1735843432782,0.00018125,97073.0,97072.0,0.47720966]
[1735843433314,0.00018125,97073.0,97072.0,0.47820966]
[1735843433887,0.00018125,97073.0,97072.0,0.50020966]
[1735843434315,0.00018125,97073.0,97072.0,0.50120966]
[1735843434674,0.00018125,97073.0,97072.0,0.50020966]
[1735843434874,0.00918125,97073.0,97072.0,0.50120966]
[1735843435075,0.00918125,97073.0,97072.0,0.50020966]
[1735843435313,0.00918125,97073.0,97072.0,2.00020966]
[1735843435711,0.00018125,97073.0,97072.0,1.99920966]
[1735843435910,0.00918125,97073.0,97072.0,2.10120966]
[1735843436384,0.00018125,97073.0,97072.0,2.10020966]
[1735843437011,0.00018125,97073.0,97072.0,2.09920966]
[1735843437419,0.00018125,97073.0,97072.0,2.10020966]
[1735843437944,0.00318125,97073.0,97072.0,2.10120966]
[1735843438445,0.0002,97089.0,97072.0,2.10120966]
[1735843438446,0.0002,97089.0,97088.0,0.655998]
[1735843438652,0.0002,97089.0,97088.0,0.96518432]
[1735843439093,0.0002,97089.0,97088.0,2.46518432]
[1735843440093,0.0002,97089.0,97088.0,2.11518432]
[1735843440270,0.1269,97089.0,97088.0,2.11518432]
[1735843440472,0.1269,97089.0,97088.0,2.01618432]
[1735843440648,0.1279,97089.0,97088.0,2.01718432]
[1735843442132,0.1279,97089.0,97088.0,2.03290738]
[1735843442608,0.0012,97089.0,97088.0,2.18290738]
[1735843445574,0.0012,97089.0,97088.0,2.20590738]
[1735843445802,0.0012,97089.0,97088.0,2.30590738]
[1735843447706,8.55e-05,97106.0,97104.0,0.555964]
[1735843447970,8.55e-05,97106.0,97105.0,0.37698632]
[1735843448229,0.00057406,97106.0,97105.0,0.37698632]
[1735843448490,0.00057406,97106.0,97105.0,1.87698632]
[1735843448910,0.00157406,97106.0,97105.0,1.87698632]
[1735843449354,0.00157406,97106.0,97105.0,1.85398632]
[1735843449798,0.00157406,97106.0,97105.0,1.95398632]
[1735843450558,0.00157406,97106.0,97105.0,1.95498632]
[1735843450559,0.00057406,97106.0,97105.0,1.95498632]
[1735843451422,0.00057406,97106.0,97105.0,1.97025854]
[1735843451650,0.00057406,97106.0,97105.0,1.97225854]
[1735843452285,0.082,97132.0,97116.0,0.35]
[1735843452496,0.082,97132.0,97128.0,0.2]
[1735843452681,0.082,97132.0,97128.0,0.50989932]
[1735843452826,0.00684608,97129.0,97128.0,2.00989932]
[1735843453036,0.00034653,97129.0,97128.0,2.00989932]
[1735843453441,0.00034653,97129.0,97128.0,1.90989932]
[1735843454264,0.00034653,97129.0,97128.0,0.206913]
[1735843454479,0.00034653,97129.0,97128.0,0.205913]
[1735843454480,0.08174653,97129.0,97128.0,0.205913]
[1735843454976,0.08824918,97129.0,97128.0,0.207913]
[1735843455708,0.08824918,97129.0,97128.0,0.002]
[1735843455955,0.13714918,97129.0,97128.0,0.002]
[1735843457036,0.13714918,97129.0,97118.0,0.205933]
[1735843457243,0.205913,97128.0,97118.0,0.205933]
[1735843457657,0.0793,97127.0,97118.0,0.205933]
[1735843457840,0.0793,97127.0,97117.0,1.5]
[1735843458010,0.205927,97122.0,97117.0,1.5]
[1735843458225,0.28523,97120.0,97118.0,0.006]
[1735843458425,0.0793,97119.0,97118.0,0.006]
[1735843458675,0.08586682,97119.0,97116.0,0.2052]
[1735843458822,0.08586682,97119.0,97117.0,1.5]
[1735843458823,0.205935,97118.0,97117.0,1.5]
[1735843459023,0.08586682,97119.0,97117.0,1.507]
[1735843459221,0.0793,97119.0,97117.0,1.507]
[1735843459630,0.0793,97119.0,97118.0,0.10398632]
[1735843459853,0.0793,97119.0,97118.0,0.30992132]
[1735843460051,0.0489,97121.0,97118.0,0.51585632]
[1735843460333,0.0489,97121.0,97120.0,1.5]
[1735843460559,0.0489,97121.0,97120.0,1.60398632]
[1735843461143,0.0762,97126.0,97120.0,1.60398632]
[1735843461503,0.0762,97126.0,97125.0,0.20592]
[1735843461722,0.0762,97126.0,97125.0,0.30990632]
[1735843462151,0.0762,97126.0,97116.0,0.2052]
[1735843462365,0.0756,97124.0,97120.0,0.007]
[1735843462804,0.0066421,97123.0,97120.0,0.016]
[1735843463011,0.0066421,97123.0,97120.0,0.007]
[1735843463225,0.205926,97122.0,97120.0,0.007]
[1735843463640,0.205926,97122.0,97121.0,1.5]
[1735843464913,0.205926,97122.0,97117.0,0.0001708]
[1735843465121,0.305935,97118.0,97117.0,0.0001708]
[1735843465322,0.427335,97118.0,97117.0,0.0001708]
[1735843466331,0.1214,97118.0,97117.0,0.0001708]
[1735843467089,0.1214,97118.0,97117.0,0.0061708]
[1735843467307,0.1214,97118.0,97117.0,0.0151708]
[1735843467513,0.1214,97118.0,97117.0,0.0001708]
[1735843467726,0.2214,97118.0,97117.0,0.0001708]
[1735843467947,0.2214,97118.0,97117.0,0.0051708]
[1735843468149,0.2214,97118.0,97117.0,0.0141708]
[1735843468357,0.2214,97118.0,97117.0,0.0051708]
[1735843468580,0.2214,97118.0,97117.0,0.0001708]
[1735843468793,0.2164,97118.0,97117.0,0.0001708]
[1735843469646,0.1164,97118.0,97117.0,0.0001708]
[1735843469873,0.1164,97118.0,97117.0,0.0071708]
[1735843470085,0.1164,97118.0,97117.0,0.0101708]
[1735843470498,0.1164,97118.0,97117.0,0.0001708]
[1735843470913,0.1164,97118.0,97117.0,0.0061708]
[1735843471137,0.1164,97118.0,97117.0,0.0001708]
[1735843471342,0.1164,97118.0,97117.0,0.0031708]
[1735843471541,0.1164,97118.0,97117.0,1.5121708]
[1735843471801,0.1164,97118.0,97117.0,1.5001708]
[1735843472821,0.1164,97118.0,97117.0,1.60415712]
[1735843473035,0.0759,97125.0,97118.0,0.205935]
[1735843473280,0.0759,97125.0,97124.0,0.205922]
[1735843474698,0.0759,97125.0,97124.0,0.214922]
[1735843475072,0.0759,97125.0,97124.0,0.218922]
[1735843475248,0.0759,97125.0,97124.0,0.013]
[1735843475665,0.0759,97125.0,97124.0,1.513]
[1735843476367,0.0759854,97125.0,97124.0,1.513]
[1735843476930,8.54e-05,97125.0,97124.0,1.513]
[1735843478300,0.0827854,97125.0,97124.0,0.013]
[1735843478620,0.0894285,97125.0,97124.0,0.013]
[1735843480600,0.0827854,97125.0,97124.0,0.013]
[1735843481023,0.0827854,97125.0,97124.0,0.014035]
[1735843481252,0.0827854,97125.0,97124.0,0.219957]
[1735843481701,0.00672457,97125.0,97124.0,0.219957]
[1735843481918,0.00672457,97125.0,97124.0,1.719957]
[1735843482503,0.00672457,97125.0,97124.0,1.710957]
[1735843482709,0.00672457,97125.0,97124.0,1.719957]
[1735843483105,0.00672457,97125.0,97124.0,1.715957]
[1735843483307,0.00672457,97125.0,97124.0,1.722957]
[1735843484176,0.00672457,97125.0,97124.0,1.706957]
[1735843484379,0.00672457,97125.0,97124.0,1.722957]
[1735843484857,0.00672457,97125.0,97124.0,0.010035]
[1735843485667,0.00672457,97125.0,97124.0,0.001035]
[1735843485867,0.00672457,97125.0,97124.0,0.010035]
[1735843486077,0.00672457,97125.0,97121.0,0.205927]
[1735843486407,0.00672457,97125.0,97124.0,0.008]
[1735843486595,0.00672457,97125.0,97124.0,0.11198632]
[1735843486755,0.00672457,97125.0,97124.0,1.61198632]
[1735843487376,0.00672457,97125.0,97124.0,1.60398632]
[1735843488357,0.00672457,97125.0,97121.0,0.420854]
[1735843488787,0.00672457,97125.0,97121.0,0.411854]
[1735843489000,0.00772457,97125.0,97124.0,0.009]
[1735843489221,0.00772457,97125.0,97121.0,0.411854]
[1735843489438,0.00772457,97125.0,97124.0,0.008]
[1735843489650,0.00872457,97125.0,97124.0,0.008]
[1735843489853,0.00672457,97125.0,97124.0,1.508]
[1735843490061,0.00672457,97125.0,97124.0,1.509]
[1735843490272,0.00772457,97125.0,97124.0,1.509]
[1735843491071,0.00772457,97125.0,97124.0,1.517]
[1735843491283,0.08592457,97125.0,97124.0,0.017]
[1735843491634,0.14198426,97125.0,97124.0,0.017]
[1735843494545,0.01438426,97125.0,97124.0,0.017]
[1735843494991,0.00772457,97125.0,97124.0,0.017]
[1735843495447,0.00772457,97125.0,97124.0,1.517]
[1735843496063,0.00772457,97125.0,97124.0,1.82568632]
[1735843498044,0.00772457,97125.0,97124.0,1.7217]
[1735843499790,0.00772457,97125.0,97124.0,1.82568632]
[1735843500798,0.00772457,97125.0,97124.0,1.82585732]
[1735843501220,0.00772457,97125.0,97124.0,0.32585732]
[1735843501924,0.00772457,97125.0,97124.0,1.82585732]
[1735843502759,0.00772457,97125.0,97124.0,1.721871]
[1735843502974,0.00772457,97125.0,97124.0,1.82585732]
[1735843507230,0.00772457,97125.0,97124.0,1.721871]
[1735843507905,0.09072457,97125.0,97124.0,1.721871]
[1735843508373,0.13912457,97125.0,97124.0,0.017171]
[1735843508846,0.14582075,97125.0,97124.0,0.017171]
[1735843509338,0.06282075,97125.0,97124.0,0.017171]
[1735843509622,0.01442075,97125.0,97124.0,0.017171]
[1735843509879,0.01442075,97125.0,97124.0,0.12115732]
[1735843510349,0.00772457,97125.0,97124.0,0.12115732]
[1735843511433,0.00772457,97125.0,97124.0,1.62115732]
[1735843516335,0.00772457,97125.0,97124.0,0.12115732]
[1735843516832,0.00772457,97125.0,97124.0,1.62115732]
[1735843519902,0.00772457,97125.0,97124.0,0.12115732]
[1735843520314,0.00772457,97125.0,97124.0,1.62115732]
[1735843520854,0.00772457,97125.0,97124.0,1.517171]
[1735843522366,0.08392457,97125.0,97124.0,1.517171]
[1735843523076,0.09060346,97125.0,97124.0,1.517171]
[1735843525023,0.09060346,97125.0,97124.0,0.017171]
[1735843525479,0.01440346,97125.0,97124.0,0.017171]
[1735843525679,0.01440346,97125.0,97124.0,1.517171]
[1735843526144,0.00772457,97125.0,97124.0,1.517171]
[1735843526975,0.00772457,97125.0,97124.0,1.62115732]
[1735843529628,0.00772457,97125.0,97124.0,1.517171]
[1735843531164,0.00772457,97125.0,97124.0,1.62115732]
[1735843533266,0.00772457,97125.0,97124.0,1.517171]
[1735843535725,0.00772457,97125.0,97124.0,1.62115732]
[1735843536044,0.00772457,97125.0,97124.0,1.70015732]
[1735843537115,0.00772457,97125.0,97124.0,1.85015732]
[1735843537359,0.00772457,97125.0,97124.0,1.97315732]
[1735843537934,0.00772457,97125.0,97124.0,1.96515732]
[1735843538352,8.55e-05,97135.0,97134.0,0.25]
[1735843538566,8.55e-05,97135.0,97134.0,0.78758732]
[1735843538977,8.55e-05,97135.0,97134.0,2.38758732]
[1735843539172,8.55e-05,97135.0,97134.0,2.46528732]
[1735843539608,8.55e-05,97135.0,97134.0,2.46628732]
[1735843539806,8.55e-05,97135.0,97134.0,2.46728732]
[1735843540001,8.55e-05,97135.0,97134.0,2.46628732]
[1735843540885,0.09266725,97161.0,97150.0,0.579567]
[1735843541123,0.09266725,97185.0,97168.0,0.455829]
[1735843541367,5e-07,97171.0,97170.0,0.555824]
[1735843541600,5e-07,97171.0,97170.0,2.05981032]
[1735843541837,0.00014698,97171.0,97170.0,2.05981032]
[1735843542300,0.00014698,97171.0,97170.0,2.18281032]
[1735843542997,0.00014698,97171.0,97170.0,2.18481032]
[1735843543571,0.00014698,97171.0,97170.0,2.41185332]
[1735843543797,0.000102,97201.0,97170.0,2.41185332]
[1735843543798,0.000102,97201.0,97199.0,0.373]
[1735843544025,0.000102,97201.0,97200.0,0.25]
[1735843544265,4.54e-05,97204.0,97203.0,0.35]
[1735843544488,0.00053347,97204.0,97203.0,1.97698632]
[1735843545373,8.55e-05,97223.0,97222.0,0.45]
[1735843545551,8.55e-05,97223.0,97222.0,0.76440032]
[1735843545788,0.00023189,97223.0,97222.0,0.86440032]
[1735843546020,0.00023189,97223.0,97222.0,2.38740032]
[1735843546224,0.00023189,97223.0,97222.0,2.36440032]
[1735843546537,0.00023189,97223.0,97222.0,2.26540032]
[1735843546958,0.00013532,97223.0,97222.0,2.36640032]
[1735843547179,0.00013532,97223.0,97222.0,2.26640032]
[1735843547387,0.00013532,97223.0,97222.0,0.61640032]
[1735843547604,0.00013532,97223.0,97222.0,0.62947232]
[1735843547825,0.00013532,97223.0,97222.0,0.51640032]
[1735843548039,0.00013532,97223.0,97222.0,0.51440032]
[1735843548233,0.00013532,97223.0,97222.0,0.51540032]
[1735843548458,0.00013532,97223.0,97222.0,0.51640032]
[1735843548671,0.00022082,97223.0,97222.0,0.51540032]
[1735843548876,0.00022082,97223.0,97222.0,0.51440032]
[1735843549099,0.00022082,97223.0,97222.0,0.51540032]
[1735843549298,0.00022082,97223.0,97222.0,0.51440032]
[1735843549655,0.00022082,97223.0,97222.0,0.51540032]
[1735843550538,0.00022082,97223.0,97222.0,2.01540032]
[1735843551386,0.00922082,97223.0,97222.0,2.01540032]
[1735843551585,0.01822082,97223.0,97222.0,2.01640032]
[1735843551793,0.00922082,97223.0,97222.0,2.01540032]
[1735843552545,0.01822082,97223.0,97222.0,2.01640032]
[1735843553077,0.01822082,97223.0,97222.0,0.2067]
[1735843553286,0.01822082,97223.0,97222.0,0.002]
[1735843554525,0.00022082,97223.0,97206.0,1.5]
[1735843554736,0.205714,97222.0,97207.0,0.205746]
[1735843554938,0.00422082,97223.0,97212.0,0.205735]
[1735843555305,0.00422082,97223.0,97212.0,1.705735]
[1735843555728,0.00022082,97223.0,97212.0,1.5]
[1735843555889,0.009,97222.0,97212.0,1.5]
[1735843556127,0.00122082,97223.0,97212.0,1.5]
[1735843557555,0.00022082,97223.0,97212.0,1.5]
[1735843557701,0.00922082,97223.0,97212.0,1.501]
[1735843557910,0.01422082,97223.0,97212.0,1.501]
[1735843558510,0.01422082,97223.0,97212.0,0.001]
[1735843560419,0.01422082,97223.0,97216.0,0.1]
[1735843560663,0.01422082,97223.0,97217.0,0.30828632]
[1735843561139,0.00922082,97223.0,97222.0,1.5]
[1735843561389,0.00922082,97223.0,97222.0,1.77698632]
[1735843561647,0.00122082,97223.0,97222.0,1.85528632]
[1735843561907,0.00222082,97223.0,97222.0,1.85528632]
[1735843562166,0.00122082,97223.0,97222.0,1.85528632]
[1735843562479,0.00922082,97223.0,97222.0,2.32253032]
[1735843562719,0.01822082,97223.0,97222.0,1.95728632]
[1735843562922,0.05,97250.0,97232.0,0.35]
[1735843563142,0.05,97250.0,97232.0,0.47698632]
[1735843563661,0.05,97250.0,97232.0,1.95398632]
[1735843564533,0.05,97250.0,97232.0,1.96686433]
[1735843565160,0.0070855,97233.0,97232.0,1.96786433]
[1735843565377,0.00698894,97233.0,97232.0,1.96786433]
[1735843565776,0.0471,97241.0,97232.0,1.5]
[1735843565994,0.079,97240.0,97221.0,0.01280336]
[1735843566213,0.013,97233.0,97232.0,0.002]
[1735843567256,0.006,97233.0,97232.0,0.001]
[1735843567671,0.07890858,97240.0,97232.0,0.009]
[1735843567881,0.07890858,97240.0,97232.0,0.01]
[1735843568141,0.1,97235.0,97232.0,0.009]
[1735843568369,0.1,97235.0,97218.0,1.5]
[1735843568574,0.002,97233.0,97232.0,0.017]
[1735843568804,0.001,97233.0,97232.0,0.008]
[1735843569013,0.101,97233.0,97232.0,0.008]
[1735843569215,0.1,97230.0,97218.0,1.5]
[1735843569865,0.1,97228.0,97218.0,1.5]
[1735843571361,0.07890858,97240.0,97219.0,0.10398632]
[1735843571548,0.1,97232.0,97218.0,1.5091708]
[1735843571786,0.1,97232.0,97218.0,1.5001708]
[1735843572020,8.54e-05,97228.0,97218.0,1.5091708]
[1735843572246,8.54e-05,97228.0,97218.0,1.5001708]
[1735843572454,0.0010854,97228.0,97218.0,1.5091708]
[1735843572690,0.0010854,97228.0,97219.0,0.009]
[1735843572912,8.54e-05,97228.0,97219.0,0.009]
[1735843573320,0.0010854,97228.0,97219.0,0.009]
[1735843573744,0.0010854,97228.0,97218.0,1.5091708]
[1735843574029,0.0020854,97228.0,97218.0,1.5181708]
[1735843574240,0.1010854,97228.0,97218.0,1.5091708]
[1735843574453,0.1,97227.0,97218.0,1.5091708]
[1735843574664,0.1,97226.0,97219.0,0.009]
[1735843574881,0.076,97225.0,97219.0,0.008]
[1735843575342,0.076,97225.0,97218.0,0.0001708]
[1735843575343,0.1,97219.0,97218.0,0.0091708]
[1735843575550,0.28448632,97219.0,97218.0,0.0001708]
[1735843575764,0.28448632,97219.0,97218.0,0.0081708]
[1735843576184,0.28448632,97219.0,97218.0,0.0001708]
[1735843576589,0.28548632,97219.0,97218.0,0.0091708]
[1735843577977,0.28448632,97219.0,97218.0,0.0001708]
[1735843578234,0.28448632,97219.0,97218.0,0.0171708]
[1735843578235,0.28648632,97219.0,97218.0,0.0171708]
[1735843578736,0.28548632,97219.0,97218.0,0.0091708]
[1735843578992,0.28548632,97219.0,97218.0,0.0071708]
[1735843579429,0.28448632,97219.0,97218.0,0.0001708]
[1735843579920,0.28548632,97219.0,97218.0,0.0071708]
[1735843580384,0.28648632,97219.0,97218.0,0.0161708]
[1735843581378,0.1825,97219.0,97218.0,0.0161708]
[1735843581833,0.1825,97219.0,97218.0,1.5161708]
[1735843582269,0.002,97219.0,97218.0,1.5161708]
[1735843583241,0.002,97219.0,97218.0,0.0161708]
[1735843583920,0.002,97219.0,97218.0,1.5161708]
[1735843584490,8.54e-05,97240.0,97218.0,1.5001708]
[1735843584737,0.001,97219.0,97218.0,1.5091708]
[1735843584987,0.002,97219.0,97218.0,1.5081708]
[1735843585257,0.003,97219.0,97218.0,1.5171708]
[1735843585497,0.002,97219.0,97218.0,1.5091708]
[1735843585784,0.002,97219.0,97218.0,1.5171708]
[1735843586514,0.002,97219.0,97218.0,1.62115712]
[1735843586981,0.002,97219.0,97218.0,1.61315712]
[1735843587433,0.002,97219.0,97218.0,1.62215712]
[1735843588580,0.002,97219.0,97218.0,1.5181708]
[1735843591907,0.002,97219.0,97218.0,0.0181708]
[1735843592392,0.002,97219.0,97218.0,1.5181708]
[1735843592628,0.002,97219.0,97218.0,1.62215712]
[1735843593850,0.002,97219.0,97218.0,1.97395712]
[1735843594590,8.54e-05,97240.0,97239.0,0.1]
[1735843594817,8.54e-05,97240.0,97239.0,0.40828632]
[1735843595287,8.54e-05,97240.0,97239.0,1.90828632]
[1735843595520,8.54e-05,97240.0,97239.0,2.11396432]
[1735843595754,8.54e-05,97240.0,97239.0,2.12296432]
[1735843597426,8.54e-05,97240.0,97239.0,2.29596432]
[1735843597654,8.54e-05,97240.0,97239.0,2.36876432]
[1735843597878,8.54e-05,97240.0,97239.0,2.39013913]
[1735843598101,8.54e-05,97240.0,97239.0,2.38113913]
[1735843598352,8.54e-05,97240.0,97239.0,2.38213913]
[1735843598557,0.0020854,97240.0,97239.0,2.40398364]
[1735843599446,0.0020854,97240.0,97239.0,2.38098364]
[1735843599681,0.0020854,97240.0,97239.0,2.37998364]
[1735843599908,0.0020854,97240.0,97239.0,2.38098364]
[1735843600552,0.0020854,97240.0,97239.0,2.27833913]
[1735843600783,0.0020854,97240.0,97239.0,2.12833913]
[1735843601529,0.0020854,97240.0,97239.0,1.7063]